fUSD/lending_fUSD_20250405
["ID","MTS","AMOUNT","RATE_DAILY","PERIOD"]
[357198114,1743887431693,-7092.65934809,0.00038422,2]
[357198115,1743887431703,-249.45776243,0.00038431,2]
[357198116,1743887431713,-249.45776243,0.00038539,2]
[357198117,1743887431722,-249.45776243,0.00038648,2]
[357198118,1743887431732,-999.99,0.00038648,2]
[357198119,1743887431741,-249.45776243,0.00038757,2]
[357198120,1743887431751,-249.45776243,0.00038865,2]
[357198121,1743887431760,-500.0,0.000389,5]
[357198122,1743887431769,-249.45776243,0.00038974,2]
[357198123,1743887431779,-249.45776243,0.00039083,2]
[357198124,1743887431788,-249.45776243,0.00039191,2]
[357198125,1743887431797,-249.45776243,0.000393,2]
[357198126,1743887431807,-150.0,0.00039399,4]
[357198127,1743887431815,-253.17,0.000394,7]
[357198128,1743887431825,-9999.99,0.000394,2]
[357198129,1743887431835,-6821.81,0.000394,2]
[357198130,1743887431846,-5687.2,0.000394,2]
[357198131,1743887431856,-150.99,0.000394,2]
[357198132,1743887431865,-150.0,0.00041844,2]
[357198133,1743887431876,-418.83244837,0.00043418,2]
[357198134,1743887431885,-151.11,0.00043428,2]
[357198135,1743887431894,-150.0,0.00043869,2]
[357198136,1743887431906,-1716.0,0.00044,7]
[357198137,1743887431917,-2751.0,0.00044038,120]
[357198138,1743887431926,-156.37,0.00044038,2]
[357198139,1743887431935,-4572.72,0.0004416,2]
[357198140,1743887431944,-170.59,0.00044352,120]
[357198141,1743887431955,-224.77,0.00044464,2]
[357198142,1743887431965,-200.0,0.00044508,2]
[357198143,1743887431974,-200.0,0.00044842,2]
[357198144,1743887431986,-150.0,0.00045041,2]
[357198145,1743887431996,-279.30252435,0.00045118,2]
[357198146,1743887432005,-23900.0,0.0004528,2]
[357198147,1743887432014,-250.0,0.00045551,2]
[357198148,1743887432024,-1702.31,0.00045657,2]
[357198149,1743887432033,-250.0,0.00045941,2]
[357198150,1743887432043,-150.0,0.00046212,2]
[357198151,1743887432052,-150.0,0.00047384,2]
[357198152,1743887432062,-318.0,0.00047592,2]
[357198153,1743887432072,-504.51,0.00047853,2]
[357198154,1743887432081,-840.23114549,0.00048292,2]
[357198155,1743887432091,-500.90196486,0.00048311,10]
[357198156,1743887432100,-2000.0,0.000485,2]
[357198158,1743887432110,-150.0,0.00048556,2]
[357198159,1743887432119,-1000.0,0.00048856,2]
[357198161,1743887432128,-1789.2769,0.000489,2]
[357198163,1743887432137,-4047.4849,0.000489,2]
[357198165,1743887432147,-500.0,0.000491,10]
[357198167,1743887432156,-500.0,0.000491,2]
[357198168,1743887432165,-2125.18,0.00049185,2]
[357198169,1743887432175,-2437.08031797,0.00049202,2]
[357198171,1743887432184,-500.0,0.00049459,2]
[357198173,1743887432194,-210.98,0.000497,14]
[357198175,1743887432204,-150.0,0.00049728,120]
[357198177,1743887432217,-1000.0,0.0004989,2]
[357198179,1743887432227,-2500.0,0.0004989,2]
[357198181,1743887432237,-509.78318468,0.000499,22]
[357198183,1743887432247,-5000.0,0.000499,120]
[357198185,1743887432256,-165.85192511,0.00049917,26]
[357198187,1743887432266,-1241.58592214,0.00049957,2]
[357198189,1743887432276,-193.96131254,0.00049957,2]
[357198191,1743887432286,-138.69755243,0.00049957,2]
[357198194,1743887432298,-19.12850555,0.00049957,2]
[357198196,1743887432308,-500.31388887,0.00049973,10]
[357198198,1743887432317,-160.80734652,0.00049973,5]
[357198200,1743887432327,-159.75025906,0.00049973,10]
[357198201,1743887432338,-340.24974094,0.00049973,10]
[357198202,1743887432348,-201.91744668,0.00049973,10]
[357198203,1743887432359,-298.6025748,0.00049973,10]
[357198204,1743887432369,-21.68783784,0.0004999,4]
[357198205,1743887432380,-502.89086419,0.0004999,4]
[357198206,1743887432392,-4407.26800177,0.0004999,4]
[357198207,1743887432403,-809.87798182,0.0004999,4]
[357198208,1743887432414,-30932.90723845,0.0004999,4]
[357198209,1743887432426,-1498.37856869,0.0004999,4]
[357198210,1743887432438,-5865.59063688,0.0004999,4]
[357198211,1743887434682,-198.72,0.0004999,4]
[357198219,1743887437603,-428.7000009,0.0004999,4]
[357198220,1743887437657,-713.93834854,0.0004999,4]
[357198221,1743887437766,-287.95653475,0.0004999,4]
[357198222,1743887437777,-430.885,0.0004999,4]
[357198223,1743887437821,-419.515,0.0004999,4]
[357198245,1743887439912,-495.02,0.0004999,4]
[357198246,1743887439971,-1897.74363316,0.0004999,4]
[357198247,1743887439982,-591.39,0.0004999,4]
[357198248,1743887439994,-1311.71106017,0.0004999,4]
[357198249,1743887440028,-493.80144382,0.0004999,4]
[357198250,1743887440040,-1907.61631091,0.0004999,4]
[357198251,1743887440051,-4287.36,0.0004999,4]
[357198252,1743887440063,-3070.5981233,0.0004999,4]
[357198253,1743887440073,-4277.0,0.0004999,4]
[357198254,1743887440192,-16606.67425421,0.0004999,4]
[357198256,1743887440202,-151.29,0.0004999,120]
[357198257,1743887440211,-42763.38550501,0.0004999,4]
[357198261,1743887442842,-4541.34003054,0.00049957,2]
[357198262,1743887442853,-21394.1882244,0.0004999,4]
[357198267,1743887443623,-151.33,0.0004999,4]
[357198272,1743887445700,-354.04,0.0004999,4]
[357198273,1743887445867,-138980.13336959,0.0004999,4]
[357198274,1743887445876,-82520.9261543,0.0004999,4]
[357198275,1743887445886,-169.56705614,0.0004999,7]
[357198276,1743887445895,-491.0,0.0004999,2]
[357198277,1743887445905,-150.0,0.00049999,3]
[357198278,1743887445915,-150.0,0.00049999,3]
[357198279,1743887445924,-150.0,0.00049999,3]
[357198280,1743887445933,-150.0,0.00049999,3]
[357198281,1743887445943,-150.0,0.00049999,3]
[357198282,1743887445953,-150.0,0.00049999,3]
[357198283,1743887445964,-150.0,0.00049999,3]
[357198284,1743887445974,-150.0,0.00049999,3]
[357198285,1743887445983,-150.0,0.00049999,3]
[357198286,1743887445992,-150.0,0.00049999,3]
[357198287,1743887446002,-1468.10291563,0.0005,61]
[357198288,1743887446011,-203577.5908392,0.0005,61]
[357198289,1743887446021,-1467.0,0.0005,7]
[357198290,1743887446030,-1374331.48590432,0.0005,2]
[357198292,1743887446043,-981.52816192,0.0005,2]
[357198293,1743887446054,-276.71074097,0.0005,2]
[357198299,1743887446570,-151.0,0.00050057,60]
[357198302,1743887524758,-150.0,0.00026849,2]
[357198303,1743887534915,-150.0,0.00049936,38]
[357198304,1743887799018,-150.0,0.00019,2]
[357198306,1743888308933,-100.0,0.00019,2]
[357198307,1743888308960,-50.0,0.0002,2]
[357198309,1743888348274,-398.2235,0.0002,2]
[357198321,1743888356205,-173.19014926,0.0001995,2]
[357198322,1743888370086,-155.76,0.0001995,2]
[357198327,1743888389109,485.22883034,0.00015,2]
[357198328,1743888389716,-297.17206569,0.0001995,2]
[357198329,1743888425813,157.91,0.000153,2]
[357198330,1743888429472,373.73151438,0.00015,2]
[357198383,1743888478089,1991092.78090311,0.00015,2]
[357198384,1743888478115,531.0,0.00015,2]
[357198385,1743888478144,86150.0,0.00015,2]
[357198386,1743888478167,4699.28224958,0.00015,2]
[357198387,1743888478189,4699.28224958,0.00015,2]
[357198388,1743888478212,4699.28224958,0.00015,2]
[357198389,1743888478234,4699.28224958,0.00015,2]
[357198390,1743888478255,4699.28224958,0.00015,2]
[357198391,1743888478278,4699.28224958,0.00015,2]
[357198392,1743888478305,658336.68206353,0.00015,2]
[357198393,1743888478762,-360.33269572,0.0001995,2]
[357198394,1743888478784,-154.5891631,0.00019999,2]
[357198395,1743888497666,-165.11349362,0.000199,2]
[357198396,1743888514198,-0.73843148,0.000199,2]
[357198397,1743888514220,-158.08742322,0.000199,2]
[357198398,1743888544017,-163.65090034,0.000199,2]
[357198399,1743888557815,-46.64628463,0.000199,2]
[357198400,1743888557837,-239.54394806,0.000199,2]
[357198401,1743888561580,-222.67521801,0.000199,2]
[357198410,1743888621820,-150.0,0.00019899,2]
[357198411,1743888627002,-150.0,0.00019899,2]
[357198412,1743888631910,-61.36782252,0.000199,2]
[357198413,1743888631920,-3027.56002036,0.000199,2]
[357198414,1743888631930,-827.72394808,0.000199,2]
[357198415,1743888631940,-335.57504546,0.00019999,2]
[357198416,1743888631952,-252.30251801,0.00019999,2]
[357198417,1743888631962,-13930.38435526,0.0002,2]
[357198418,1743888631974,-31325.99877469,0.0002,2]
[357198419,1743888631985,-494.7767235,0.0002,2]
[357198420,1743888631996,-300.15350352,0.0002,2]
[357198445,1743888637974,-40319.42812218,0.0002,2]
[357198456,1743888641743,-731.35209722,0.0002,2]
[357198457,1743888641754,-103346.28390048,0.0002,2]
[357198458,1743888641766,-387.68625209,0.0002,2]
[357198459,1743888641778,-764.947,0.0002,2]
[357198460,1743888641788,-2271.15000765,0.0002,2]
[357198461,1743888641799,-5869.64901264,0.0002,2]
[357198462,1743888641810,-2322.00821227,0.0002,2]
[357198463,1743888641826,-2187.7,0.0002,2]
[357198464,1743888641838,-725.91676573,0.0002,2]
[357198465,1743888641849,-735.70445631,0.0002,2]
[357198466,1743888641862,-944.63503,0.0002,2]
[357198473,1743888642928,-882.46632352,0.0002,2]
[357198474,1743888642940,-608.44251436,0.0002,2]
[357198475,1743888642951,-735.915,0.0002,2]
[357198476,1743888643044,-1915.03356049,0.0002,2]
[357198477,1743888643057,-9023.78068925,0.0002,2]
[357198478,1743888643067,-445.93234517,0.0002,2]
[357198482,1743888643739,-313.08324991,0.0002,2]
[357198483,1743888643750,-275.98042131,0.0002,2]
[357198484,1743888643761,-61689.25502172,0.0002,2]
[357198485,1743888643772,-1121.145,0.0002,2]
[357198486,1743888643784,-1128.8597477,0.0002,2]
[357198487,1743888643795,-5278.2296984,0.0002,2]
[357198488,1743888643806,-6177.15085334,0.0002,2]
[357198489,1743888643816,-7732.94178223,0.0002,2]
[357198490,1743888643830,-36335.0,0.0002,2]
[357198493,1743888645887,-397.39523315,0.0002,2]
[357198494,1743888645947,-12885.00648281,0.0002,2]
[357198495,1743888646065,-3453.25681683,0.0002,2]
[357198496,1743888646241,-764.2288189,0.0002,2]
[357198501,1743888677907,-349.05799238,0.000199,2]
[357198502,1743888690464,-239.61722563,0.000199,2]
[357198503,1743888693552,-286.19023269,0.000199,2]
[357198504,1743888701632,-194.83188909,0.000199,2]
[357198505,1743888721986,-159.79533431,0.00019899,2]
[357198506,1743888731870,-140.20466569,0.00019899,2]
[357198507,1743888731895,-12.53033431,0.000199,2]
[357198508,1743888773636,181.02,0.00028919,120]
[357198509,1743888804577,-796.26629494,0.000199,2]
[357198510,1743888804600,-167.45854486,0.000199,2]
[357198511,1743888804624,-365.85849511,0.000199,2]
[357198512,1743888804647,-224.72135385,0.000199,2]
[357198513,1743888804671,-323.08264059,0.0001999,2]
[357198514,1743888804693,-666.0,0.00019999,2]
[357198515,1743888804719,-3797456.61267065,0.0002,2]
[357198516,1743888875161,-447.17206569,0.0002,4]
[357198517,1743888875190,-22559.93286941,0.0002,4]
[357198518,1743888882718,-232.70532826,0.000199,2]
[357198519,1743888882751,-200.68233688,0.000199,2]
[357198520,1743888882782,-91912.6012,0.000199,2]
[357198521,1743888882814,-97343.90619976,0.0002,2]
[357198522,1743889205717,-160.52535,0.000199,2]
[357198523,1743889206119,158.45158,0.0002,23]
[357198524,1743889384820,-167.8371,0.00019899,2]
[357198525,1743889442181,-300.0,0.00019899,2]
[357198530,1743889621983,-250.0,0.00019,2]
[357198531,1743889622007,-41.36556772,0.00019899,2]
[357198554,1743889774594,-375.0204,0.000199,2]
[357198555,1743889832138,-300.0,0.00019899,2]
[357198556,1743889832148,-424.93785,0.000199,2]
[357198557,1743889832158,-19061.0312,0.000199,2]
[357198558,1743889832168,-1000.5849,0.000199,2]
[357198559,1743889832177,-49868.6755,0.000199,2]
[357198560,1743889832187,-3444.5456,0.000199,2]
[357198561,1743889832196,-171.54913847,0.000199,2]
[357198562,1743889832205,-944.86432042,0.000199,2]
[357198563,1743889832217,-520.63437958,0.000199,2]
[357198564,1743889832226,-1980.4009,0.000199,2]
[357198565,1743889832235,-2853.34095861,0.000199,2]
[357198566,1743889832245,-1512.88659965,0.000199,2]
[357198567,1743889832255,-158891.27908666,0.0002,2]
[357198568,1743889832266,-12991.11724431,0.0002,2]
[357198569,1743889832281,-285.661587,0.0002,2]
[357198570,1743889832292,-624.71325753,0.0002,2]
[357198571,1743889832323,-7827.66878774,0.0002,2]
[357198572,1743889832402,-43010.79713,0.0002,2]
[357198581,1743889837952,-1003.84212779,0.0002,2]
[357198582,1743889838012,-53246.60153044,0.0002,2]
[357198583,1743889838022,-13027.61294364,0.0002,2]
[357198584,1743889838034,-300.0,0.00021,2]
[357198585,1743889838044,-420.0,0.0002167,2]
[357198586,1743889838054,-250.0,0.00021889,2]
[357198587,1743889838063,-250.0,0.0002189,2]
[357198588,1743889838073,-150.0,0.00021917,2]
[357198589,1743889838082,-2381.92336603,0.00022826,2]
[357198590,1743889838093,-350.0,0.00023,2]
[357198591,1743889838103,-2853.34095856,0.00023233,2]
[357198592,1743889838113,-1512.88659956,0.00023233,2]
[357198593,1743889838122,-150.0,0.00023287,2]
[357198594,1743889838132,-12995.84872997,0.00023287,2]
[357198595,1743889838143,-54.63127003,0.00023287,2]
[357198596,1743889838153,-757.58,0.00024545,2]
[357198597,1743889838163,-34692.71491912,0.000248,2]
[357198598,1743889838175,-17449.55431648,0.000248,2]
[357198599,1743889838184,-10428.4538471,0.0002487,2]
[357198600,1743889838194,-635.605617,0.0002489,2]
[357198602,1743889838204,-400.0,0.00025,2]
[357198604,1743889838213,-23900.0,0.00025415,2]
[357198606,1743889838222,-1000.0,0.00025628,2]
[357198607,1743889838232,-150.0,0.00026183,7]
[357198609,1743889838241,-500.0,0.00026235,2]
[357198611,1743889838250,-250.0,0.00026263,2]
[357198613,1743889838259,-2000.0,0.00026326,2]
[357198615,1743889838268,-3311.8,0.00026351,2]
[357198617,1743889838278,-171.71,0.00026396,2]
[357198619,1743889838287,-150.06,0.00026484,2]
[357198620,1743889838296,-150.06,0.00026517,2]
[357198621,1743889838306,-150.06,0.0002655,2]
[357198622,1743889838316,-2853.34095856,0.00026567,2]
[357198623,1743889838325,-1512.88659956,0.00026567,2]
[357198624,1743889838334,-150.06,0.00026583,2]
[357198625,1743889838343,-150.06,0.00026616,2]
[357198627,1743889838355,-500.0,0.00026621,2]
[357198629,1743889838364,-221.34,0.00026721,2]
[357198631,1743889838374,-757.58,0.00026809,2]
[357198633,1743889838383,-103.17,0.00026849,2]
[357198635,1743889838392,-165.5,0.00026849,2]
[357198637,1743889838401,-282.97,0.00026849,2]
[357198639,1743889838411,-450.0,0.00027,2]
[357198641,1743889838420,-14033.58739885,0.00027123,2]
[357198643,1743889838431,-1999.60814649,0.00027123,2]
[357198645,1743889838442,-932.91866564,0.00027123,2]
[357198647,1743889838453,-1816.41773961,0.00027123,2]
[357198649,1743889838464,-1654.68340939,0.00027123,2]
[357198650,1743889838479,-9696.43,0.00027123,2]
[357198651,1743889838491,-1151.71618142,0.00027123,2]
[357198652,1743889838500,-1037.41381858,0.00027133,2]
[357198661,1743889840103,-42430.42687185,0.00027133,2]
[357198662,1743889840114,-2523.98930957,0.00027133,2]
[357198663,1743889840123,-200.0,0.00027354,2]
[357198664,1743889840132,-1653.68,0.00027397,2]
[357198665,1743889840141,-250.66109674,0.00027408,2]
[357198666,1743889840150,-202.33,0.00027621,2]
[357198667,1743889840159,-358.64,0.00027672,2]
[357198668,1743889840168,-1765.9,0.0002773,2]
[357198669,1743889840178,-150.0,0.00027765,2]
[357198670,1743889840187,-738.3,0.00028199,2]
[357198671,1743889840197,-3638.75,0.00028217,2]
[357198672,1743889840206,-1653.68,0.00028767,2]
[357198673,1743889840216,-1000.0,0.00028831,2]
[357198674,1743889840225,-500.0,0.00029,2]
[357198675,1743889840234,-508.84380263,0.00029073,2]
[357198676,1743889840246,-248.73619737,0.00029073,2]
[357198677,1743889840256,-2853.34095856,0.000299,2]
[357198678,1743889840265,-1512.88659956,0.000299,2]
[357198679,1743889840275,-367.523,0.00029924,24]
[357198680,1743889840284,-167.8371,0.00030036,10]
[357198681,1743889840293,-1771.20895356,0.00030036,2]
[357198682,1743889840302,-166.95725003,0.00030036,2]
[357198683,1743889840312,-150.6,0.00030095,2]
[357198684,1743889840321,-2169.58389096,0.000301,2]
[357198685,1743889840332,-988.17480671,0.000301,2]
[357198686,1743889840343,-1907.61631091,0.000301,2]
[357198687,1743889840354,-4287.36,0.000301,2]
[357198688,1743889840365,-1075.71883852,0.000301,2]
[357198689,1743889840375,-1994.87928478,0.00030106,2]
[357198690,1743889840385,-4277.0,0.00030106,2]
[357198691,1743889840400,-14585.02840942,0.00030106,2]
[357198692,1743889840409,-11990.35,0.0003011,2]
[357198693,1743889840418,-83427.630777,0.00030116,2]
[357198694,1743889840427,-72999.1769298,0.00030126,2]
[357198695,1743889840436,-191.72524463,0.00030126,2]
[357198696,1743889840446,-500.0,0.00030136,2]
[357198697,1743889840455,-512.64918383,0.00030136,2]
[357198698,1743889840464,-507.22433906,0.00030136,2]
[357198699,1743889840473,-532.10570679,0.00030136,2]
[357198701,1743889840482,-510.2290945,0.00030136,2]
[357198702,1743889840492,-514.66580122,0.00030136,2]
[357198704,1743889840501,-500.0,0.00030136,2]
[357198706,1743889840510,-508.6985193,0.00030136,2]
[357198708,1743889840520,-532.03912869,0.00030136,2]
[357198710,1743889840529,-574.55476108,0.00030136,2]
[357198712,1743889840538,-508.72257962,0.00030136,2]
[357198713,1743889840549,-522.38490658,0.00030136,2]
[357198714,1743889840558,-512.206252,0.00030136,2]
[357198715,1743889840567,-502.4555977,0.00030136,2]
[357198716,1743889840576,-500.0,0.00030136,2]
[357198717,1743889840585,-531.15859403,0.00030136,2]
[357198718,1743889840595,-562.28658328,0.00030136,2]
[357198719,1743889840604,-509.31104957,0.00030136,2]
[357198720,1743889840614,-508.9481938,0.00030136,2]
[357198721,1743889840623,-508.55056872,0.00030136,2]
[357198722,1743889840632,-586.99441234,0.00030136,2]
[357198723,1743889840641,-517.22353815,0.00030136,2]
[357198724,1743889840651,-500.0,0.00030136,2]
[357198725,1743889840660,-536.22617981,0.00030136,2]
[357198726,1743889840669,-515.97153711,0.00030136,2]
[357198727,1743889840678,-565.78052781,0.00030136,2]
[357198728,1743889840687,-500.0,0.00030136,2]
[357198729,1743889840696,-512.52719556,0.00030136,2]
[357198730,1743889840709,-525.13269731,0.00030136,2]
[357198731,1743889840718,-546.7373372,0.00030136,2]
[357198732,1743889840728,-548.97287445,0.00030136,2]
[357198733,1743889840737,-500.0,0.00030136,2]
[357198734,1743889840747,-500.0,0.00030136,2]
[357198735,1743889840756,-512.04610925,0.00030136,2]
[357198736,1743889840766,-522.05696041,0.00030136,2]
[357198737,1743889840775,-512.40227533,0.00030136,2]
[357198738,1743889840785,-528.36683242,0.00030136,2]
[357198739,1743889840794,-484.3555446,0.00030136,2]
[357198740,1743889840803,-510.98153037,0.00030136,2]
[357198741,1743889840812,-500.0,0.00030136,2]
[357198742,1743889840821,-526.82805976,0.00030136,2]
[357198743,1743889840831,-503.87696942,0.00030136,2]
[357198744,1743889840840,-500.0,0.00030136,2]
[357198745,1743889840849,-547.64043078,0.00030136,2]
[357198746,1743889840858,-516.10378742,0.00030136,2]
[357198747,1743889840867,-505.56085246,0.00030136,2]
[357198748,1743889840876,-515.69807666,0.00030136,2]
[357198749,1743889840885,-521.11709184,0.00030136,2]
[357198750,1743889840894,-516.65935313,0.00030136,2]
[357198751,1743889840903,-573.1069447,0.00030136,2]
[357198752,1743889840913,-508.60771571,0.00030136,2]
[357198753,1743889840923,-503.81607841,0.00030136,2]
[357198754,1743889840932,-500.0,0.00030136,2]
[357198755,1743889840942,-216.44064662,0.00030136,2]
[357198756,1743889840952,-500.0,0.00030136,2]
[357198757,1743889840963,-510.9330461,0.00030136,2]
[357198758,1743889840971,-556.28107211,0.00030136,2]
[357198759,1743889840982,-499.53451109,0.00030136,2]
[357198760,1743889840991,-501.47012312,0.00030136,2]
[357198761,1743889841135,-505.05252688,0.00030136,2]
[357198762,1743889841144,-540.91715454,0.00030136,2]
[357198763,1743889841154,-482.59520095,0.00030136,2]
[357198764,1743889841163,-500.0,0.00030136,2]
[357198765,1743889841171,-511.93765404,0.00030136,2]
[357198766,1743889841180,-527.84760792,0.00030136,2]
[357198767,1743889841189,-533.503136,0.00030136,2]
[357198768,1743889841198,-526.74918738,0.00030136,2]
[357198769,1743889841207,-504.7902459,0.00030136,2]
[357198770,1743889841216,-506.96737864,0.00030136,2]
[357198771,1743889841225,-500.0,0.00030136,2]
[357198772,1743889841234,-500.0,0.00030136,2]
[357198773,1743889841244,-510.5107565,0.00030136,2]
[357198774,1743889841253,-519.88672085,0.00030136,2]
[357198775,1743889841262,-544.39645963,0.00030136,2]
[357198776,1743889841271,-500.0,0.00030136,2]
[357198777,1743889841280,-500.0,0.00030136,2]
[357198778,1743889841289,-501.66535431,0.00030136,2]
[357198779,1743889841299,-524.27303324,0.00030136,2]
[357198780,1743889841309,-516.22133628,0.00030136,2]
[357198781,1743889841320,-506.58518559,0.00030136,2]
[357198782,1743889841328,-527.12255597,0.00030136,2]
[357198783,1743889841338,-524.53809672,0.00030136,2]
[357198784,1743889841348,-518.01354124,0.00030136,2]
[357198785,1743889841357,-524.06224383,0.00030136,2]
[357198786,1743889841366,-507.59773656,0.00030136,2]
[357198787,1743889841377,-500.0,0.00030136,2]
[357198788,1743889841388,-516.00269184,0.00030136,2]
[357198789,1743889841397,-524.48260692,0.00030136,2]
[357198790,1743889841407,-509.88864836,0.00030136,2]
[357198791,1743889841416,-513.7547963,0.00030136,2]
[357198792,1743889841425,-500.0,0.00030136,2]
[357198793,1743889841434,-502.7640388,0.00030136,2]
[357198794,1743889841443,-535.15642111,0.00030136,2]
[357198795,1743889841451,-524.1154923,0.00030136,2]
[357198796,1743889841461,-517.79906547,0.00030136,2]
[357198797,1743889841470,-499.99955896,0.00030136,2]
[357198798,1743889841479,-546.97512353,0.00030136,2]
[357198799,1743889841488,-500.0,0.00030136,2]
[357198800,1743889841497,-559.47351589,0.00030136,2]
[357198801,1743889841506,-518.22854635,0.00030136,2]
[357198802,1743889841516,-564.83527558,0.00030136,2]
[357198803,1743889841524,-500.0,0.00030136,2]
[357198804,1743889841533,-540.93847215,0.00030136,2]
[357198805,1743889841542,-533.11456666,0.00030136,2]
[357198806,1743889841552,-500.0,0.00030136,2]
[357198807,1743889841561,-500.0,0.00030136,2]
[357198808,1743889841570,-500.0,0.00030136,2]
[357198809,1743889841579,-500.0,0.00030136,2]
[357198810,1743889841588,-502.51669327,0.00030136,2]
[357198811,1743889841598,-500.0,0.00030136,2]
[357198812,1743889841609,-500.0,0.00030136,2]
[357198813,1743889841619,-572.86823297,0.00030136,2]
[357198814,1743889841627,-508.45276248,0.00030136,2]
[357198815,1743889841639,-507.78592355,0.00030136,2]
[357198816,1743889841650,-500.0,0.00030136,2]
[357198817,1743889841659,-513.18242525,0.00030136,2]
[357198818,1743889841669,-529.50591915,0.00030136,2]
[357198819,1743889841678,-500.0,0.00030136,2]
[357198820,1743889841687,-526.52431132,0.00030136,2]
[357198821,1743889841696,-500.0,0.00030136,2]
[357198822,1743889841705,-503.99585176,0.00030136,2]
[357198823,1743889841715,-528.17475178,0.00030136,2]
[357198824,1743889841725,-503.65799843,0.00030136,2]
[357198825,1743889841734,-509.4444864,0.00030136,2]
[357198826,1743889841743,-503.66029625,0.00030136,2]
[357198827,1743889841752,-503.61480996,0.00030136,2]
[357198828,1743889841762,-501.77154227,0.00030136,2]
[357198829,1743889841771,-514.16354024,0.00030136,2]
[357198830,1743889841780,-529.32592399,0.00030136,2]
[357198831,1743889841788,-501.64159599,0.00030136,2]
[357198832,1743889841798,-516.55868243,0.00030136,2]
[357198833,1743889841807,-504.9706814,0.00030136,2]
[357198834,1743889841815,-500.0,0.00030136,2]
[357198835,1743889841825,-505.22337565,0.00030136,2]
[357198836,1743889841834,-545.84854918,0.00030136,2]
[357198837,1743889841842,-500.0,0.00030136,2]
[357198838,1743889841851,-510.65935318,0.00030136,2]
[357198839,1743889841860,-591.9202866,0.00030136,2]
[357198840,1743889841869,-515.1471283,0.00030136,2]
[357198841,1743889841878,-507.23211988,0.00030136,2]
[357198842,1743889841887,-500.0,0.00030136,2]
[357198843,1743889841895,-500.0,0.00030136,2]
[357198844,1743889841904,-500.0,0.00030136,2]
[357198845,1743889841913,-500.0,0.00030136,2]
[357198846,1743889841921,-500.0,0.00030136,2]
[357198847,1743889841930,-500.0,0.00030136,2]
[357198848,1743889841939,-500.0,0.00030136,2]
[357198849,1743889841948,-524.83420211,0.00030136,2]
[357198850,1743889841957,-500.0,0.00030136,2]
[357198851,1743889841966,-501.80305507,0.00030136,2]
[357198852,1743889841974,-500.0,0.00030136,2]
[357198853,1743889841983,-500.0,0.00030136,2]
[357198854,1743889841992,-500.0,0.00030136,2]
[357198855,1743889842001,-500.0,0.00030136,2]
[357198856,1743889842009,-500.0,0.00030136,2]
[357198857,1743889842019,-500.0,0.00030136,2]
[357198858,1743889842028,-520.38298428,0.00030136,2]
[357198859,1743889842040,-500.0,0.00030136,2]
[357198860,1743889842050,-503.0986301,0.00030136,2]
[357198861,1743889842058,-507.68102609,0.00030136,2]
[357198862,1743889842067,-518.82016548,0.00030136,2]
[357198863,1743889842076,-500.0,0.00030136,2]
[357198864,1743889842085,-515.45558019,0.00030136,2]
[357198865,1743889842094,-508.5232041,0.00030136,2]
[357198866,1743889842103,-525.65460852,0.00030136,2]
[357198867,1743889842112,-500.0,0.00030136,2]
[357198868,1743889842121,-500.0,0.00030136,2]
[357198869,1743889842130,-527.545398,0.00030136,2]
[357198870,1743889842139,-500.0,0.00030136,2]
[357198871,1743889842148,-500.0,0.00030136,2]
[357198872,1743889842156,-500.0,0.00030136,2]
[357198873,1743889842166,-500.0,0.00030136,2]
[357198874,1743889842175,-514.36310331,0.00030136,2]
[357198875,1743889842183,-509.68208514,0.00030136,2]
[357198876,1743889842193,-500.0,0.00030136,2]
[357198877,1743889842202,-507.84265367,0.00030136,2]